fUSD/lending_fUSD_20260517
["ID","MTS","AMOUNT","RATE_DAILY","PERIOD"]
[422502313,1779001842000,-503.0,0.00027137,2]
[422502316,1779001842000,-338.33324232,0.0002715,2]
[422502317,1779001842000,-1007.91425451,0.0002715,2]
[422502318,1779001842000,-166.66,0.00027314,2]
[422502320,1779001842000,-375.91303789,0.00027397,21]
[422502332,1779001842000,-500.0,0.00027599,7]
[422502322,1779001842000,-526.72,0.00027397,2]
[422502333,1779001842000,-210.74877588,0.000276,2]
[422502321,1779001842000,-187.95651894,0.00027397,21]
[422502328,1779001842000,-234.39,0.000274,7]
[422502341,1779001842000,-187.6,0.0002783,30]
[422502327,1779001842000,-158.41,0.000274,7]
[422502324,1779001842000,-5326.32,0.00027397,10]
[422502330,1779001842000,-160.0,0.000274,10]
[422502331,1779001842000,-204.1551231,0.000275,2]
[422502329,1779001842000,-1528.56,0.000274,14]
[422502325,1779001842000,-11602.56,0.00027397,10]
[422502326,1779001842000,-9668.8,0.00027397,10]
[422502334,1779001842000,-214.04877741,0.000276,2]
[422502335,1779001842000,-215.0785988,0.00027601,2]
[422502346,1779001842000,-160.0,0.00028,2]
[422502339,1779001842000,-503.0,0.00027782,2]
[422502340,1779001842000,-500.0,0.000278,7]
[422502337,1779001842000,-208.48490792,0.00027601,2]
[422502338,1779001842000,-5027.04767755,0.00027669,3]
[422502336,1779001842000,-160.0,0.00027601,2]
[422502323,1779001842000,-300.0,0.00027397,2]
[422502376,1779001842000,-792.56,0.00028693,30]
[422502356,1779001842000,-214.04877741,0.000284,2]
[422502380,1779001842000,-790.71,0.00028693,30]
[422502426,1779001842000,-792.56,0.00028852,7]
[422502428,1779001842000,-672.32,0.00028852,7]
[422502438,1779001842000,-790.71,0.00028883,30]
[422502429,1779001842000,-187.56,0.00028852,7]
[422502427,1779001842000,-173.54,0.00028852,7]
[422502431,1779001842000,-667.49,0.00028883,30]
[422502440,1779001842000,-667.49,0.00028915,2]
[422502439,1779001842000,-900.0,0.000289,10]
[422502430,1779001842000,-790.71,0.00028852,7]
[422502434,1779001842000,-174.0,0.00028883,30]
[422502432,1779001842000,-187.07,0.00028883,30]
[422502437,1779001842000,-187.56,0.00028883,30]
[422502433,1779001842000,-792.56,0.00028883,30]
[422502435,1779001842000,-173.54,0.00028883,30]
[422502425,1779001842000,-187.07,0.00028852,7]
[422502436,1779001842000,-672.32,0.00028883,30]
[422502445,1779001842000,-672.32,0.00028915,2]
[422502443,1779001842000,-174.0,0.00028915,2]
[422502444,1779001842000,-173.54,0.00028915,2]
[422502448,1779001842000,-667.49,0.00028947,7]
[422502453,1779001842000,-672.32,0.00028947,7]
[422502452,1779001842000,-173.54,0.00028947,7]
[422502446,1779001842000,-187.56,0.00028915,2]
[422502447,1779001842000,-790.71,0.00028915,2]
[422502451,1779001842000,-174.0,0.00028947,7]
[422502442,1779001842000,-792.56,0.00028915,2]
[422502450,1779001842000,-792.56,0.00028947,7]
[422502455,1779001842000,-790.71,0.00028947,7]
[422502456,1779001842000,-166.66,0.00028955,2]
[422502381,1779001842000,-210.74877588,0.000287,2]
[422502441,1779001842000,-187.07,0.00028915,2]
[422502423,1779001842000,-790.71,0.0002882,2]
[422502449,1779001842000,-187.07,0.00028947,7]
[422502422,1779001842000,-187.56,0.0002882,2]
[422502421,1779001842000,-672.32,0.0002882,2]
[422502379,1779001842000,-187.56,0.00028693,30]
[422502377,1779001842000,-173.54,0.00028693,30]
[422502386,1779001842000,-173.54,0.00028725,2]
[422502385,1779001842000,-792.56,0.00028725,2]
[422502384,1779001842000,-187.07,0.00028725,2]
[422502383,1779001842000,-667.49,0.00028725,2]
[422502387,1779001842000,-672.32,0.00028725,2]
[422502389,1779001842000,-790.71,0.00028725,2]
[422502399,1779001842000,-672.32,0.00028756,7]
[422502388,1779001842000,-187.56,0.00028725,2]
[422502390,1779001842000,-166.52,0.00028732,2]
[422502393,1779001842000,-187.07,0.00028756,7]
[422502405,1779001842000,-187.07,0.00028788,30]
[422502403,1779001842000,-667.49,0.00028788,30]
[422502382,1779001842000,-214.04877741,0.000287,2]
[422502402,1779001842000,-790.71,0.00028756,7]
[422502401,1779001842000,-187.56,0.00028756,7]
[422502420,1779001842000,-173.54,0.0002882,2]
[422502410,1779001842000,-672.32,0.00028788,30]
[422502424,1779001842000,-667.49,0.00028852,7]
[422502417,1779001842000,-792.56,0.0002882,2]
[422502412,1779001842000,-790.71,0.00028788,30]
[422502413,1779001842000,-667.49,0.0002882,2]
[422502414,1779001842000,-187.07,0.0002882,2]
[422502409,1779001842000,-173.54,0.00028788,30]
[422502407,1779001842000,-792.56,0.00028788,30]
[422502395,1779001842000,-792.56,0.00028756,7]
[422502397,1779001842000,-173.54,0.00028756,7]
[422502391,1779001842000,-667.49,0.00028756,7]
[422502411,1779001842000,-187.56,0.00028788,30]
[422502454,1779001842000,-187.56,0.00028947,7]
[422502491,1779001843000,-174.0,0.00029074,30]
[422502496,1779001843000,-535.0,0.00029092,5]
[422502506,1779001843000,-187.07,0.00029137,7]
[422502489,1779001843000,-187.07,0.00029074,30]
[422502487,1779001843000,-503.0,0.00029071,4]
[422502488,1779001843000,-667.49,0.00029074,30]
[422502486,1779001843000,-790.71,0.00029042,7]
[422502485,1779001843000,-187.56,0.00029042,7]
[422502484,1779001843000,-672.32,0.00029042,7]
[422502490,1779001843000,-792.56,0.00029074,30]
[422502483,1779001843000,-173.54,0.00029042,7]
[422502495,1779001843000,-790.71,0.00029074,30]
[422502504,1779001843000,-790.71,0.00029105,2]
[422502505,1779001843000,-667.49,0.00029137,7]
[422502497,1779001843000,-667.49,0.00029105,2]
[422502498,1779001843000,-187.07,0.00029105,2]
[422502502,1779001843000,-672.32,0.00029105,2]
[422502499,1779001843000,-792.56,0.00029105,2]
[422502503,1779001843000,-187.56,0.00029105,2]
[422502501,1779001843000,-173.54,0.00029105,2]
[422502508,1779001843000,-174.0,0.00029137,7]
[422502518,1779001843000,-672.32,0.00029169,30]
[422502493,1779001843000,-672.32,0.00029074,30]
[422502519,1779001843000,-187.56,0.00029169,30]
[422502500,1779001843000,-174.0,0.00029105,2]
[422502492,1779001843000,-173.54,0.00029074,30]
[422502466,1779001843000,-1528.56,0.00029,14]
[422502481,1779001843000,-792.56,0.00029042,7]
[422502510,1779001843000,-672.32,0.00029137,7]
[422502465,1779001843000,-234.39,0.00029,7]
[422502463,1779001843000,-187.56,0.00028979,30]
[422502461,1779001843000,-173.54,0.00028979,30]
[422502457,1779001843000,-667.49,0.00028979,30]
[422502464,1779001843000,-790.71,0.00028979,30]
[422502462,1779001843000,-672.32,0.00028979,30]
[422502459,1779001843000,-792.56,0.00028979,30]
[422502458,1779001843000,-187.07,0.00028979,30]
[422502460,1779001843000,-174.0,0.00028979,30]
[422502468,1779001843000,-151.0,0.00029002,7]
[422502467,1779001843000,-509.70236039,0.00029,2]
[422502470,1779001843000,-151.0,0.00029005,7]
[422502469,1779001843000,-151.0,0.00029005,7]
[422502472,1779001843000,-187.07,0.0002901,2]
[422502471,1779001843000,-667.49,0.0002901,2]
[422502475,1779001843000,-173.54,0.0002901,2]
[422502476,1779001843000,-672.32,0.0002901,2]
[422502473,1779001843000,-792.56,0.0002901,2]
[422502474,1779001843000,-174.0,0.0002901,2]
[422502478,1779001843000,-790.71,0.0002901,2]
[422502480,1779001843000,-187.07,0.00029042,7]
[422502479,1779001843000,-667.49,0.00029042,7]
[422502477,1779001843000,-187.56,0.0002901,2]
[422502482,1779001843000,-174.0,0.00029042,7]
[422502494,1779001843000,-187.56,0.00029074,30]
[422502512,1779001843000,-790.71,0.00029137,7]
[422502514,1779001843000,-187.07,0.00029169,30]
[422502507,1779001843000,-792.56,0.00029137,7]
[422502574,1779001843000,-159.0,0.00030194,30]
[422502573,1779001843000,-303.0,0.00030194,30]
[422502562,1779001843000,-500.0,0.00030099,7]
[422502565,1779001843000,-765.35011356,0.000301,2]
[422502571,1779001843000,-164.0,0.00030194,30]
[422502572,1779001843000,-248.0,0.00030194,30]
[422502564,1779001843000,-765.35011357,0.000301,2]
[422502569,1779001843000,-211.87729042,0.00030137,30]
[422502570,1779001843000,-159.0,0.00030163,30]
[422502567,1779001843000,-200.0,0.00030137,2]
[422502566,1779001843000,-765.35011356,0.000301,2]
[422502576,1779001843000,-169.0,0.00030194,30]
[422502577,1779001843000,-153.0,0.00030194,30]
[422502575,1779001843000,-164.0,0.00030194,30]
[422502578,1779001843000,-159.0,0.00030194,30]
[422502579,1779001843000,-160.0,0.00030194,30]
[422502581,1779001843000,-160.194566,0.000302,2]
[422502584,1779001843000,-372.21409986,0.00030439,3]
[422502585,1779001843000,-211.87729042,0.00030558,30]
[422502582,1779001843000,-151.0,0.00030239,2]
[422502580,1779001843000,-2008.62,0.000302,2]
[422502583,1779001843000,-503.0,0.0003036,5]
[422502587,1779001843000,-350.0,0.00030886,2]
[422502586,1779001843000,-154.59181352,0.00030655,7]
[422502509,1779001843000,-173.54,0.00029137,7]
[422502563,1779001843000,-1221.0,0.000301,7]
[422502561,1779001843000,-9429.0982319,0.00029855,2]
[422502568,1779001843000,-384.53,0.00030137,2]
[422502548,1779001843000,-672.45,0.00029232,7]
[422502511,1779001843000,-187.56,0.00029137,7]
[422502560,1779001843000,-503.0,0.00029716,4]
[422502515,1779001843000,-792.56,0.00029169,30]
[422502513,1779001843000,-667.49,0.00029169,30]
[422502517,1779001843000,-173.54,0.00029169,30]
[422502516,1779001843000,-174.0,0.00029169,30]
[422502520,1779001843000,-790.71,0.00029169,30]
[422502523,1779001843000,-792.56,0.00029201,2]
[422502521,1779001843000,-667.49,0.00029201,2]
[422502527,1779001843000,-173.54,0.00029201,2]
[422502525,1779001843000,-174.0,0.00029201,2]
[422502529,1779001843000,-672.32,0.00029201,2]
[422502522,1779001843000,-187.07,0.00029201,2]
[422502559,1779001843000,-150.0,0.00029534,2]
[422502558,1779001843000,-375.91303789,0.00029433,21]
[422502532,1779001843000,-187.56,0.00029201,2]
[422502551,1779001843000,-187.64,0.00029232,7]
[422502554,1779001843000,-790.71,0.00029232,7]
[422502546,1779001843000,-173.6,0.00029232,7]
[422502556,1779001843000,-179.22,0.000293,7]
[422502540,1779001843000,-792.65,0.00029232,7]
[422502536,1779001843000,-667.59,0.00029232,7]
[422502538,1779001843000,-187.08,0.00029232,7]
[422502534,1779001843000,-790.71,0.00029201,2]
[422502543,1779001843000,-174.09,0.00029232,7]
[422502627,1779001844000,-503.0,0.0003165,6]
[422502630,1779001844000,-150.0,0.00032049,2]
[422502625,1779001844000,-208.78173273,0.00031578,7]
[422502629,1779001844000,-150.0,0.00032049,2]
[422502626,1779001844000,-206.82626118,0.00031586,2]
[422502616,1779001844000,-159.0,0.00031194,30]
[422502621,1779001844000,-1000.0,0.000315,7]
[422502632,1779001844000,-150.0,0.00032049,2]
[422502622,1779001844000,-9429.0982319,0.00031544,2]
[422502620,1779001844000,-166.52,0.00031466,2]
[422502631,1779001844000,-150.0,0.00032049,2]
[422502623,1779001844000,-172.02087918,0.00031561,5]
[422502624,1779001844000,-309.18362705,0.00031563,7]
[422502640,1779001844000,-285.0,0.00032163,30]
[422502635,1779001844000,-242.0,0.00032049,2]
[422502633,1779001844000,-150.0,0.00032049,2]
[422502636,1779001844000,-268.0,0.00032125,2]
[422502638,1779001844000,-172.0,0.00032125,2]
[422502644,1779001844000,-183.73647286,0.00032192,7]
[422502637,1779001844000,-150.0,0.00032125,2]
[422502634,1779001844000,-150.0,0.00032049,2]
[422502643,1779001844000,-413.65252236,0.00032192,2]
[422502642,1779001844000,-417.56346547,0.00032184,7]
[422502641,1779001844000,-463.77544057,0.00032169,7]
[422502639,1779001844000,-159.0,0.00032163,30]
[422502614,1779001844000,-169.0,0.00031194,30]
[422502628,1779001844000,-211.87729042,0.00031823,30]
[422502615,1779001844000,-153.0,0.00031194,30]
[422502591,1779001844000,-350.0,0.00030886,2]
[422502617,1779001844000,-160.0,0.00031194,30]
[422502646,1779001844000,-303.0,0.00032194,30]
[422502593,1779001844000,-350.0,0.00030886,2]
[422502592,1779001844000,-350.0,0.00030886,2]
[422502595,1779001844000,-350.0,0.00030886,2]
[422502594,1779001844000,-350.0,0.00030886,2]
[422502588,1779001844000,-350.0,0.00030886,2]
[422502589,1779001844000,-350.0,0.00030886,2]
[422502596,1779001844000,-151.0,0.00030912,2]
[422502590,1779001844000,-350.0,0.00030886,2]
[422502599,1779001844000,-150.0,0.0003098,30]
[422502608,1779001844000,-500.0,0.00031188,7]
[422502601,1779001844000,-150.0,0.0003098,30]
[422502619,1779001844000,-211.87729042,0.00031401,30]
[422502600,1779001844000,-150.0,0.0003098,30]
[422502609,1779001844000,-170.62894597,0.00031194,30]
[422502605,1779001844000,-150.0,0.00031011,2]
[422502606,1779001844000,-200.0,0.00031096,2]
[422502603,1779001844000,-187.0,0.0003098,30]
[422502598,1779001844000,-211.87729042,0.0003098,30]
[422502607,1779001844000,-159.0,0.00031163,30]
[422502602,1779001844000,-150.0,0.0003098,30]
[422502611,1779001844000,-303.0,0.00031194,30]
[422502610,1779001844000,-248.0,0.00031194,30]
[422502612,1779001844000,-164.0,0.00031194,30]
[422502613,1779001844000,-168.0,0.00031194,30]
[422502618,1779001844000,-957.04110618,0.00031233,2]
[422502604,1779001844000,-503.0,0.00031005,6]
[422502645,1779001844000,-248.0,0.00032194,30]
[422502597,1779001844000,-194.04175838,0.00030943,5]
[422502656,1779001844000,-503.0,0.00032423,7]
[422502676,1779001844000,-1223.0,0.00033681,2]
[422502678,1779001844000,-6055.0,0.00033681,2]
[422502693,1779001844000,-219.0,0.0003432,2]
[422502683,1779001844000,-150.0,0.00034144,2]
[422502682,1779001844000,-150.0,0.00034144,2]
[422502688,1779001844000,-248.0,0.00034194,30]
[422502687,1779001844000,-150.0,0.0003419,2]
[422502684,1779001844000,-292.0,0.00034144,2]
[422502689,1779001844000,-303.0,0.00034194,30]
[422502686,1779001844000,-151.0,0.00034182,7]
[422502691,1779001844000,-160.0,0.000342,21]
[422502685,1779001844000,-159.0,0.00034163,30]
[422502692,1779001844000,-503.0,0.00034228,9]
[422502695,1779001844000,-150.0,0.0003432,2]
[422502694,1779001844000,-275.0,0.0003432,2]
[422502705,1779001844000,-150.0,0.0003432,2]
[422502706,1779001844000,-1270.0,0.0003432,2]
[422502699,1779001844000,-150.0,0.0003432,2]
[422502697,1779001844000,-150.0,0.0003432,2]
[422502698,1779001844000,-166.969,0.0003432,2]
[422502696,1779001844000,-161.862,0.0003432,2]
[422502704,1779001844000,-625.0,0.0003432,2]
[422502703,1779001844000,-927.0,0.0003432,2]
[422502700,1779001844000,-150.0,0.0003432,2]
[422502701,1779001844000,-150.08,0.0003432,2]
[422502702,1779001844000,-1354.0,0.0003432,2]
[422502650,1779001844000,-1528.56,0.000322,14]
[422502674,1779001844000,-503.0,0.00033584,9]
[422502673,1779001844000,-211.87729042,0.00033509,30]
[422502690,1779001844000,-169.0,0.00034194,30]
[422502675,1779001844000,-611.0,0.00033612,2]
[422502657,1779001844000,-150.0,0.00032562,2]
[422502677,1779001844000,-418.405,0.00033681,2]
[422502649,1779001844000,-162.0,0.00032194,30]
[422502652,1779001844000,-151.0,0.0003221,5]
[422502648,1779001844000,-153.0,0.00032194,30]
[422502647,1779001844000,-169.0,0.00032194,30]
[422502653,1779001844000,-211.87729042,0.00032244,30]
[422502651,1779001844000,-160.0,0.000322,12]
[422502654,1779001844000,-152.0,0.0003226,4]
[422502658,1779001844000,-234.39,0.000326,7]
[422502659,1779001844000,-211.87729042,0.00032666,30]
[422502661,1779001844000,-259.10906137,0.00033062,2]
[422502662,1779001844000,-2169.094,0.00033067,34]
[422502660,1779001844000,-503.0,0.00032939,8]
[422502655,1779001844000,-503.0,0.00032294,7]
[422502679,1779001844000,-211.87729042,0.0003393,30]
[422502669,1779001844000,-169.0,0.00033194,30]
[422502670,1779001844000,-156.0,0.00033194,30]
[422502680,1779001844000,-150.0,0.00033946,2]
[422502681,1779001844000,-150.0,0.00034144,2]
[422502672,1779001844000,-9429.0982319,0.00033233,2]
[422502663,1779001844000,-174.905,0.00033067,34]
[422502671,1779001844000,-160.0,0.000332,16]
[422502667,1779001844000,-248.0,0.00033194,30]
[422502664,1779001844000,-211.87729042,0.00033087,30]
[422502668,1779001844000,-303.0,0.00033194,30]
[422502665,1779001844000,-1000.0,0.00033128,34]
[422502666,1779001844000,-159.0,0.00033163,30]
[422502755,1779001845000,-2000.0,0.000362,26]
[422502746,1779001845000,-179.22,0.000357,7]
[422502750,1779001845000,-503.0,0.00036162,11]
[422502747,1779001845000,-150.0,0.00035899,2]
[422502742,1779001845000,-211.87729042,0.00035616,30]
[422502741,1779001845000,-606.82,0.00035615,7]
[422502739,1779001845000,-4510.3460553,0.0003561,2]
[422502738,1779001845000,-28471.54874155,0.0003561,2]
[422502736,1779001845000,-293.86404168,0.00035432,2]
[422502737,1779001845000,-503.0,0.00035518,11]
[422502749,1779001845000,-151.0,0.00036153,30]
[422502743,1779001845000,-211.87629387,0.00035616,60]
[422502754,1779001845000,-169.0,0.00036194,30]
[422502767,1779001845000,-200.0,0.00036352,2]
[422502757,1779001845000,-160.0,0.000362,31]
[422502748,1779001845000,-25082.12885053,0.00036,2]
[422502752,1779001845000,-248.0,0.00036194,30]
[422502751,1779001845000,-159.0,0.00036163,30]
[422502753,1779001845000,-303.0,0.00036194,30]
[422502758,1779001845000,-2000.0,0.0003621,26]
[422502759,1779001845000,-2681.171739,0.0003622,26]
[422502770,1779001845000,-200.0,0.00036352,2]
[422502769,1779001845000,-200.0,0.00036352,2]
[422502760,1779001845000,-2052.2576,0.00036305,2]
[422502763,1779001845000,-500.0,0.0003635,7]
[422502765,1779001845000,-200.0,0.00036352,2]
[422502733,1779001845000,-1500.0,0.000352,7]
[422502756,1779001845000,-571.709251,0.000362,26]
[422502735,1779001845000,-957.04110618,0.00035317,2]
[422502718,1779001845000,-211.87729042,0.00034773,30]
[422502745,1779001845000,-303.5288317,0.00035616,2]
[422502761,1779001845000,-164.1807,0.00036305,2]
[422502708,1779001845000,-400.0,0.0003433,3]
[422502707,1779001845000,-400.0,0.0003433,3]
[422502709,1779001845000,-211.87729042,0.00034352,30]
[422502711,1779001845000,-500.0,0.00034433,60]
[422502710,1779001845000,-158.41,0.000344,30]
[422502719,1779001845000,-1500.0,0.00034795,2]
[422502712,1779001845000,-500.0,0.00034433,60]
[422502716,1779001845000,-678.0,0.00034692,5]
[422502715,1779001845000,-246.0,0.00034615,2]
[422502714,1779001845000,-250.0,0.00034615,2]
[422502717,1779001845000,-277.53,0.000347,2]
[422502731,1779001845000,-234.39,0.000352,30]
[422502721,1779001845000,-9429.0982319,0.00034922,2]
[422502720,1779001845000,-503.0,0.00034873,10]
[422502722,1779001845000,-1528.56,0.00035,14]
[422502732,1779001845000,-1453.65,0.000352,120]
[422502730,1779001845000,-580.32,0.000352,120]
[422502724,1779001845000,-159.0,0.00035163,30]
[422502727,1779001845000,-303.0,0.00035194,30]
[422502726,1779001845000,-248.0,0.00035194,30]
[422502723,1779001845000,-188.0271109,0.00035,7]
[422502725,1779001845000,-189.92,0.00035184,120]
[422502728,1779001845000,-169.0,0.00035194,30]
[422502729,1779001845000,-211.87729042,0.00035195,30]
[422502734,1779001845000,-160.0,0.000352,26]
[422502744,1779001845000,-1000.0,0.00035616,8]
[422502740,1779001845000,-500.0,0.00035615,7]
[422502762,1779001845000,-500.0,0.0003635,7]
[422502713,1779001845000,-884.3996865,0.00034433,60]
[422502768,1779001845000,-200.0,0.00036352,2]
[422502797,1779001845000,-300.0,0.00036401,2]
[422502798,1779001845000,-300.0,0.00036401,2]
[422502799,1779001845000,-604.73492277,0.00036401,2]
[422502803,1779001845000,-527.9795525,0.00036401,2]
[422502807,1779001845000,-300.0,0.00036401,2]
[422502816,1779001845000,-300.0,0.00036401,2]
[422502806,1779001845000,-726.3731759,0.00036401,2]
[422502808,1779001845000,-301.92446648,0.00036401,2]
[422502809,1779001845000,-300.0,0.00036401,2]
[422502810,1779001845000,-300.70672347,0.00036401,2]
[422502817,1779001845000,-1913.25849317,0.00036401,2]
[422502812,1779001845000,-300.0,0.00036401,2]
[422502811,1779001845000,-300.0,0.00036401,2]
[422502802,1779001845000,-300.0,0.00036401,2]
[422502813,1779001845000,-300.0,0.00036401,2]
[422502815,1779001845000,-949.41386656,0.00036401,2]
[422502818,1779001845000,-300.0,0.00036401,2]
[422502819,1779001845000,-344.12979214,0.00036401,2]
[422502829,1779001845000,-300.0,0.00036401,2]
[422502822,1779001845000,-460.44893399,0.00036401,2]
[422502821,1779001845000,-369.76155591,0.00036401,2]
[422502820,1779001845000,-527.12281632,0.00036401,2]
[422502824,1779001845000,-309.72976467,0.00036401,2]
[422502826,1779001845000,-864.84573435,0.00036401,2]
[422502828,1779001845000,-1791.55036629,0.00036401,2]
[422502764,1779001845000,-394.8,0.0003635,7]
[422502823,1779001845000,-1147.71030809,0.00036401,2]
[422502827,1779001845000,-300.0,0.00036401,2]
[422502814,1779001845000,-300.0,0.00036401,2]
[422502800,1779001845000,-300.0,0.00036401,2]
[422502825,1779001845000,-300.0,0.00036401,2]
[422502794,1779001845000,-492.91797782,0.00036401,2]
[422502805,1779001845000,-893.8052833,0.00036401,2]
[422502771,1779001845000,-200.0,0.00036352,2]
[422502773,1779001845000,-343.0,0.00036352,2]
[422502774,1779001845000,-2805.00325221,0.0003636,2]
[422502772,1779001845000,-200.0,0.00036352,2]
[422502777,1779001845000,-5865.75645904,0.0003636,2]
[422502775,1779001845000,-166.22900262,0.0003636,2]
[422502779,1779001845000,-976.0,0.000364,30]
[422502780,1779001845000,-353.59451446,0.00036401,2]
[422502776,1779001845000,-2798.68773875,0.0003636,2]
[422502781,1779001845000,-300.0,0.00036401,2]
[422502778,1779001845000,-596.0,0.0003637,2]
[422502782,1779001845000,-300.0,0.00036401,2]
[422502785,1779001845000,-300.0,0.00036401,2]
[422502766,1779001845000,-200.0,0.00036352,2]
[422502786,1779001845000,-300.0,0.00036401,2]
[422502783,1779001845000,-300.0,0.00036401,2]
[422502801,1779001845000,-300.0,0.00036401,2]
[422502804,1779001845000,-1067.39759447,0.00036401,2]
[422502795,1779001845000,-300.0,0.00036401,2]
[422502787,1779001845000,-300.0,0.00036401,2]
[422502790,1779001845000,-300.0,0.00036401,2]
[422502796,1779001845000,-300.0,0.00036401,2]
[422502791,1779001845000,-300.0,0.00036401,2]
[422502788,1779001845000,-300.0,0.00036401,2]
[422502789,1779001845000,-300.0,0.00036401,2]
[422502793,1779001845000,-300.0,0.00036401,2]
[422502784,1779001845000,-300.0,0.00036401,2]
[422502792,1779001845000,-300.0,0.00036401,2]
[422502879,1779001846000,-300.0,0.00036401,2]
[422502880,1779001846000,-300.70672347,0.00036401,2]
[422502869,1779001846000,-604.73492277,0.00036401,2]
[422502865,1779001846000,-492.91797782,0.00036401,2]
[422502855,1779001846000,-476.60259076,0.00036401,2]
[422502861,1779001846000,-300.0,0.00036401,2]
[422502866,1779001846000,-300.0,0.00036401,2]
[422502863,1779001846000,-300.0,0.00036401,2]
[422502867,1779001846000,-300.0,0.00036401,2]
[422502872,1779001846000,-300.0,0.00036401,2]
[422502864,1779001846000,-300.0,0.00036401,2]
[422502858,1779001846000,-300.0,0.00036401,2]
[422502878,1779001846000,-301.92446648,0.00036401,2]
[422502870,1779001846000,-377.5804583,0.00036401,2]
[422502871,1779001846000,-395.82293386,0.00036401,2]
[422502873,1779001846000,-527.9795525,0.00036401,2]
[422502874,1779001846000,-1067.39759447,0.00036401,2]
[422502876,1779001846000,-726.3731759,0.00036401,2]
[422502875,1779001846000,-893.8052833,0.00036401,2]
[422502877,1779001846000,-300.0,0.00036401,2]
[422502886,1779001846000,-300.0,0.00036401,2]
[422502900,1779001846000,-309.72976467,0.00036438,2]
[422502890,1779001846000,-300.0,0.00036401,2]
[422502896,1779001846000,-527.12281632,0.00036401,2]
[422502859,1779001846000,-304.02041243,0.00036401,2]
[422502868,1779001846000,-300.0,0.00036401,2]
[422502860,1779001846000,-300.0,0.00036401,2]
[422502844,1779001846000,-484.30212364,0.00036401,2]
[422502857,1779001846000,-300.0,0.00036401,2]
[422502830,1779001846000,-300.0,0.00036401,2]
[422502832,1779001846000,-311.04198967,0.00036401,2]
[422502842,1779001846000,-300.0,0.00036401,2]
[422502831,1779001846000,-300.0,0.00036401,2]
[422502833,1779001846000,-300.0,0.00036401,2]
[422502835,1779001846000,-464.05309097,0.00036401,2]
[422502834,1779001846000,-300.99518769,0.00036401,2]
[422502836,1779001846000,-300.0,0.00036401,2]
[422502841,1779001846000,-300.0,0.00036401,2]
[422502837,1779001846000,-577.47815809,0.00036401,2]
[422502839,1779001846000,-452.10208933,0.00036401,2]
[422502838,1779001846000,-376.61945263,0.00036401,2]
[422502840,1779001846000,-300.0,0.00036401,2]
[422502843,1779001846000,-300.0,0.00036401,2]
[422502846,1779001846000,-300.0,0.00036401,2]
[422502848,1779001846000,-300.0,0.00036401,2]
[422502845,1779001846000,-309.96996065,0.00036401,2]
[422502849,1779001846000,-358.04676529,0.00036401,2]
[422502847,1779001846000,-300.0,0.00036401,2]
[422502853,1779001846000,-300.0,0.00036401,2]
[422502852,1779001846000,-497.08449337,0.00036401,2]
[422502850,1779001846000,-385.1569978,0.00036401,2]